bitfinex/quotes_SOLUSD_20250507
["timestamp","ask_amount","ask_price","bid_price","bid_amount"]
[1746634944568,143.67536987,145.45,145.41,71.25647524]
[1746634944776,143.67536987,145.45,145.42,21.25647524]
[1746634944777,169.67536987,145.45,145.42,21.25647524]
[1746634945091,162.8,145.45,145.43,71.25647524]
[1746634945292,169.67533031,145.45,145.43,50.0]
[1746634945793,190.93180555,145.45,145.41,71.25647524]
[1746634945986,21.25647524,145.44,145.41,50.0]
[1746634946383,21.25647524,145.42,145.4,17.26]
[1746634946787,21.25647524,145.43,145.4,17.26]
[1746634947792,28.132722,145.43,145.4,17.26]
[1746634949684,6.87624676,145.43,145.4,17.26]
[1746634949885,21.25647524,145.43,145.4,17.26]
[1746634950084,169.67542051,145.45,145.41,50.0]
[1746634950389,190.93189575,145.45,145.41,50.0]
[1746634951498,184.05647524,145.45,145.41,78.13357057]
[1746634952784,190.93180594,145.45,145.41,50.0]
[1746634952987,21.25647524,145.44,145.41,50.0]
[1746634954287,21.25647524,145.43,145.41,50.0]
[1746634954491,6.87599505,145.44,145.4,17.26]
[1746634954492,21.25647524,145.42,145.4,17.26]
[1746634956706,21.25647524,145.43,145.4,17.26]
[1746634958513,28.13247029,145.44,145.4,17.26]
[1746634958809,21.25647524,145.43,145.4,17.26]
[1746634960110,28.13269488,145.43,145.4,17.26]
[1746634960809,21.25647524,145.42,145.4,17.26]
[1746634961194,28.13269488,145.43,145.4,17.26]
[1746634962216,6.87591027,145.44,145.4,17.26]
[1746634962418,28.13238551,145.44,145.4,17.26]
[1746634962715,6.87591027,145.44,145.4,17.26]
[1746634962917,28.13238551,145.44,145.4,17.26]
[1746634963102,21.25647524,145.43,145.4,17.26]
[1746634965013,28.13266122,145.43,145.4,17.26]
[1746634965897,21.25647524,145.42,145.4,17.26]
[1746634967818,164.93358135,145.41,145.4,17.26]
[1746634968313,164.93358135,145.41,145.37,50.0]
[1746634968622,158.05647524,145.4,145.37,50.0]
[1746634969808,136.8,145.4,145.37,50.0]
[1746634970007,21.25647524,145.39,145.37,50.0]
[1746634970218,164.93427782,145.4,145.37,50.0]
[1746634973210,158.05647524,145.4,145.37,50.0]
[1746634974328,143.67772479,145.4,145.37,50.0]
[1746634974521,136.8,145.4,145.37,78.13533396]
[1746634974705,136.8,145.4,145.37,56.87885872]
[1746634974906,136.8,145.4,145.37,78.13533396]
[1746634975205,136.8,145.4,145.37,56.87885872]
[1746634975405,136.8,145.4,145.37,50.0]
[1746634975716,158.05647524,145.4,145.37,50.0]
[1746634976234,21.25647524,145.39,145.37,50.0]
[1746634977442,28.13463818,145.39,145.37,50.0]
[1746634978011,158.05647524,145.38,145.36,16.98]
[1746634978315,21.25647524,145.37,145.36,16.98]
[1746634979847,28.13547365,145.37,145.36,16.98]
[1746634981233,28.13547365,145.37,145.32,66.98]
[1746634981428,21.25647524,145.34,145.32,66.98]
[1746634982035,143.6796967,145.36,145.32,50.0]
[1746634982240,158.05647524,145.36,145.32,78.13778917]
[1746634982450,136.8,145.36,145.33,21.25647524]
[1746634982657,136.8,145.36,145.32,78.1378007]
[1746634982948,47.25647524,145.36,145.33,16.98]
[1746634983256,21.25647524,145.34,145.33,16.98]
[1746634983957,28.13689356,145.34,145.33,16.98]
[1746634984636,28.13689356,145.34,145.29,16.98]
[1746634984836,21.25647524,145.33,145.29,16.98]
[1746634985043,158.05647524,145.33,145.29,16.98]
[1746634985250,21.25647524,145.32,145.29,16.98]
[1746634985754,21.25647524,145.31,145.29,16.98]
[1746634986633,21.25647524,145.32,145.29,16.98]
[1746634987832,21.25647524,145.31,145.29,16.98]
[1746634988236,21.25647524,145.32,145.29,16.98]
[1746634988659,136.8,145.33,145.29,23.86266794]
[1746634988838,158.05647524,145.33,145.29,23.86266794]
[1746634989249,21.25647524,145.32,145.29,23.86266794]
[1746634990248,21.25647524,145.31,145.29,16.98]
[1746634990555,21.25647524,145.3,145.26,50.0]
[1746634990765,21.25647524,145.28,145.26,56.88404288]
[1746634991339,21.25647524,145.28,145.25,16.98]
[1746634991541,21.25647524,145.27,145.25,16.98]
[1746634991741,136.8,145.29,145.25,16.98]
[1746634991955,21.25647524,145.27,145.25,16.98]
[1746634992660,21.25647524,145.28,145.25,23.86462985]
[1746634993246,136.8,145.29,145.25,23.86462985]
[1746634993554,21.25647524,145.28,145.25,23.86462985]
[1746634996158,136.8,145.29,145.26,21.25647524]
[1746634996366,158.05647524,145.29,145.25,95.12110509]
[1746634996962,136.8,145.29,145.25,95.12110509]
[1746634997462,158.05647524,145.29,145.25,73.86462985]
[1746634998252,21.25647524,145.28,145.25,73.86462985]
[1746635000161,136.8,145.29,145.25,73.86462985]
[1746635000374,21.25647524,145.27,145.25,16.98]
[1746635001041,21.25647524,145.28,145.25,16.98]
[1746635001251,143.68286107,145.29,145.25,16.98]
[1746635001440,21.25647524,145.28,145.25,16.98]
[1746635002352,21.25647524,145.28,145.25,23.86467824]
[1746635003353,21.25647524,145.27,145.25,16.98]
[1746635003553,143.68286107,145.29,145.25,73.86464772]
[1746635003554,136.8,145.29,145.25,73.86464772]
[1746635003758,21.25647524,145.28,145.25,73.86464772]
[1746635004444,21.25647524,145.27,145.25,66.98]
[1746635006871,21.25647524,145.26,145.25,16.98]
[1746635009171,21.25647524,145.26,145.24,0.2365465]
[1746635009775,6.88344844,145.28,145.24,0.2365465]
[1746635010175,21.25647524,145.26,145.24,0.2365465]
[1746635010476,6.88344844,145.28,145.24,0.2365465]
[1746635010662,6.88344844,145.28,145.24,7.12169861]
[1746635010862,21.25647524,145.27,145.24,7.12169861]
[1746635011375,21.25647524,145.27,145.24,0.2365465]
[1746635011755,21.25647524,145.27,145.24,7.1216649]
[1746635012076,21.25647524,145.27,145.24,0.2365465]
[1746635012967,21.25647524,145.27,145.24,7.12167109]
[1746635013168,6.88344844,145.28,145.24,7.12167109]
[1746635013371,21.25647524,145.27,145.24,7.12167109]
[1746635013568,6.88344844,145.28,145.24,0.2365465]
[1746635013763,21.25647524,145.27,145.24,0.2365465]
[1746635014776,21.25647524,145.27,145.24,7.12164518]
[1746635016376,21.25647524,145.26,145.24,0.2365465]
[1746635018460,21.25647524,145.25,145.24,0.2365465]
[1746635018959,6.88437348,145.26,145.24,0.2365465]
[1746635019177,21.25647524,145.25,145.24,0.2365465]
[1746635020486,6.88437348,145.26,145.24,0.2365465]
[1746635020672,21.25647524,145.25,145.24,0.2365465]
[1746635021483,157.01784886,145.29,145.24,0.2365465]
[1746635021679,21.25647524,145.26,145.24,0.2365465]
[1746635022469,6.88346338,145.28,145.24,0.2365465]
[1746635022662,21.25647524,145.27,145.24,0.2365465]
[1746635023067,21.25647524,145.26,145.24,7.12168707]
[1746635023380,6.88346338,145.28,145.24,0.2365465]
[1746635023580,6.88346338,145.28,145.24,7.12162419]
[1746635023889,21.25647524,145.27,145.24,0.2365465]
[1746635024064,21.25647524,145.26,145.24,0.2365465]
[1746635028311,6.88325991,145.28,145.24,0.2365465]
[1746635028489,21.25647524,145.27,145.24,0.2365465]
[1746635029692,143.68307457,145.29,145.24,7.12169933]
[1746635029898,143.68307457,145.29,145.25,71.25647524]
[1746635029899,158.05647524,145.29,145.25,71.25647524]
[1746635030299,21.25647524,145.28,145.25,50.0]
[1746635030698,136.8,145.29,145.25,50.0]
[1746635031011,136.8,145.29,145.26,21.25647524]
[1746635031216,21.25647524,145.33,145.28,71.25647524]
[1746635031401,21.25647524,145.32,145.28,78.13970167]
[1746635031657,6.88118971,145.33,145.28,78.13970167]
[1746635031909,28.13766495,145.33,145.29,21.25647524]
[1746635032614,21.25647524,145.32,145.28,71.25647524]
[1746635033911,6.88183882,145.31,145.28,50.0]
[1746635034097,21.25647524,145.3,145.28,50.0]
[1746635034412,21.25647524,145.29,145.27,16.78]
[1746635034601,21.25647524,145.28,145.27,16.78]
[1746635035915,28.13973515,145.28,145.27,16.78]
[1746635036817,28.13940904,145.29,145.27,16.78]
[1746635037316,21.25647524,145.29,145.27,16.78]
[1746635038714,158.05647524,145.3,145.27,16.78]
[1746635040317,164.93881018,145.3,145.27,16.78]
[1746635041697,21.25647524,145.29,145.27,16.78]
[1746635041896,21.25647524,145.28,145.27,16.78]
[1746635042097,21.25647524,145.29,145.27,16.78]
[1746635042814,21.25647524,145.28,145.27,16.78]
[1746635043130,6.88324696,145.29,145.27,16.78]
[1746635043306,21.25647524,145.28,145.27,16.78]
[1746635043506,6.88324696,145.29,145.27,16.78]
[1746635043714,21.25647524,145.28,145.27,16.78]
[1746635044619,21.25647524,145.28,145.24,67.0165465]
[1746635044819,21.25647524,145.27,145.24,73.90167695]
[1746635045015,21.25647524,145.29,145.24,95.15815219]
[1746635045319,21.25647524,145.28,145.24,95.15815219]
[1746635045699,143.68251635,145.3,145.24,95.15815219]
[1746635045899,21.25647524,145.28,145.24,95.15815219]
[1746635046519,26.0,145.31,145.24,112.3710412]
[1746635046823,21.25647524,145.29,145.27,50.0]
[1746635047403,21.25647524,145.28,145.25,50.0]
[1746635047603,21.25647524,145.26,145.25,50.0]
[1746635047804,21.25647524,145.27,145.25,50.0]
[1746635049934,21.25647524,145.26,145.25,50.0]
[1746635050423,28.14032298,145.27,145.25,50.0]
[1746635050730,21.25647524,145.27,145.25,50.0]
[1746635051433,21.25647524,145.27,145.24,17.0165465]
[1746635051434,21.25647524,145.26,145.24,17.0165465]
[1746635051619,21.25647524,145.25,145.24,17.0165465]
[1746635053032,28.14115682,145.25,145.24,17.0165465]
[1746635053819,28.14115682,145.25,145.24,0.2365465]
[1746635055146,6.88468158,145.25,145.24,0.2365465]
[1746635055315,28.14115682,145.25,145.24,0.2365465]
[1746635060551,46.79080568,145.25,145.24,0.2365465]
[1746635060855,6.88468158,145.25,145.24,0.2365465]
[1746635061056,28.14115682,145.25,145.24,0.2365465]
[1746635061231,6.88468158,145.25,145.24,0.2365465]
[1746635061431,28.14115682,145.25,145.24,0.2365465]
[1746635062241,6.88468158,145.25,145.24,0.2365465]
[1746635062438,21.25647524,145.25,145.24,0.2365465]
[1746635063237,136.8,145.26,145.24,0.2365465]
[1746635063942,21.25647524,145.25,145.24,0.2365465]
[1746635064320,28.14115682,145.25,145.24,0.2365465]
[1746635066264,21.25647524,145.25,145.24,0.2365465]
[1746635067544,136.8,145.29,145.24,0.2365465]
[1746635067728,21.25647524,145.27,145.24,0.2365465]
[1746635067924,21.25647524,145.27,145.24,7.12167324]
[1746635068326,21.25647524,145.28,145.25,50.0]
[1746635068545,136.8,145.29,145.25,50.0]
[1746635068850,158.05647524,145.29,145.25,87.97647524]
[1746635069049,158.05647524,145.29,145.25,66.72]
[1746635070773,158.05647524,145.29,145.26,6.88420762]
[1746635071151,169.68155301,145.32,145.26,28.14068286]
[1746635071459,21.25647524,145.3,145.26,28.14068286]
[1746635072374,136.8,145.32,145.28,6.88325991]
[1746635072762,136.8,145.32,145.28,28.13973515]
[1746635073357,136.8,145.32,145.29,50.0]
[1746635073674,21.25647524,145.33,145.29,50.0]
[1746635074770,21.25647524,145.32,145.29,50.0]
[1746635074971,21.25647524,145.3,145.27,50.0]
[1746635075953,21.25647524,145.29,145.27,50.0]
[1746635076166,21.25647524,145.3,145.27,50.0]
[1746635077064,6.88222477,145.31,145.27,71.25647524]
[1746635077378,28.13870001,145.31,145.27,71.25647524]
[1746635077577,21.25647524,145.3,145.27,50.0]
[1746635077958,21.25647524,145.29,145.27,50.0]
[1746635079081,28.13880489,145.3,145.27,50.0]
[1746635080586,21.25647524,145.29,145.25,94.8609312]
[1746635080969,21.25647524,145.3,145.27,50.0]
[1746635081981,21.25647524,145.3,145.27,56.88370107]
[1746635082180,21.25647524,145.31,145.27,56.88370107]
[1746635082379,6.88153976,145.32,145.27,56.88370107]
[1746635082578,21.25647524,145.31,145.27,56.88370107]
[1746635082775,21.25647524,145.3,145.27,56.88370107]
[1746635082959,21.25647524,145.3,145.27,50.0]
[1746635083163,6.88153976,145.32,145.25,16.72]
[1746635083164,21.25647524,145.29,145.25,71.25647524]
[1746635083381,21.25647524,145.28,145.26,16.72]
[1746635083981,6.88231245,145.3,145.26,16.72]
[1746635084180,21.25647524,145.29,145.26,16.72]
[1746635084689,28.13878769,145.3,145.26,23.60419195]
[1746635084874,164.93854357,145.31,145.26,44.86066719]
[1746635085372,21.25647524,145.31,145.28,50.0]
[1746635085574,21.25647524,145.32,145.28,50.0]
[1746635085779,21.25647524,145.31,145.28,50.0]
[1746635087216,28.13860082,145.31,145.26,87.97647524]
[1746635087394,21.25647524,145.29,145.26,66.72]
[1746635089487,6.88253085,145.3,145.26,66.72]
[1746635089699,28.13900609,145.3,145.26,66.72]
[1746635090389,28.13900609,145.3,145.26,87.97647524]
[1746635090784,28.13900609,145.3,145.26,94.8606594]
[1746635091295,21.25647524,145.29,145.26,66.72]
[1746635092792,21.25647524,145.28,145.26,66.72]
[1746635092992,6.88292496,145.29,145.26,16.72]
[1746635093195,21.25647524,145.28,145.26,16.72]
[1746635093792,28.1394002,145.29,145.26,16.72]
[1746635094500,6.88292496,145.29,145.26,16.72]
[1746635094795,136.8,145.32,145.26,94.86058181]
[1746635095100,21.25647524,145.3,145.26,94.86058181]
[1746635097780,21.25647524,145.29,145.26,66.72]
[1746635097979,28.13932568,145.29,145.26,66.72]
[1746635098913,21.25647524,145.29,145.26,66.72]
[1746635099090,28.13897372,145.3,145.26,94.8606783]
[1746635100794,28.13897372,145.3,145.26,66.72]
[1746635101607,6.88249848,145.3,145.26,66.72]
[1746635101906,28.13897372,145.3,145.26,66.72]
[1746635102904,21.25647524,145.29,145.26,66.72]
[1746635103812,21.25647524,145.29,145.26,16.72]
[1746635104893,28.13938665,145.29,145.26,16.72]
[1746635105210,21.25647524,145.29,145.26,16.72]
[1746635105406,28.13901501,145.3,145.26,16.72]
[1746635109113,28.13901501,145.3,145.26,44.8605414]
[1746635113303,28.13901501,145.3,145.26,37.97647524]
[1746635114620,143.68156792,145.32,145.27,71.25647524]
[1746635114822,164.93804316,145.32,145.27,71.25647524]
[1746635115028,21.25647524,145.31,145.27,71.25647524]
[1746635115211,28.13834558,145.31,145.27,78.14000386]
[1746635115527,21.25647524,145.3,145.27,56.88352862]
[1746635115719,21.25647524,145.3,145.25,37.93647524]
[1746635115903,21.25647524,145.29,145.25,16.68]
[1746635116105,21.25647524,145.29,145.25,37.93647524]
[1746635116506,21.25647524,145.29,145.25,44.82113885]
[1746635116702,21.25647524,145.29,145.25,37.93647524]
[1746635117304,21.25647524,145.3,145.25,37.93647524]
[1746635119027,24.0864674,145.31,145.25,37.93647524]
[1746635119327,6.88278615,145.29,145.25,37.93647524]
[1746635120531,6.88183882,145.31,145.26,21.25647524]
[1746635120741,28.13831406,145.31,145.26,21.25647524]
[1746635121127,6.88183882,145.31,145.26,21.25647524]
[1746635121319,8.016,145.35,145.3,21.25647524]
[1746635121512,21.25647524,145.34,145.3,21.25647524]
[1746635121712,28.13689356,145.34,145.3,21.25647524]
[1746635121913,21.25647524,145.33,145.29,21.25647524]
[1746635122113,21.25647524,145.32,145.28,78.13959694]
[1746635122425,21.25647524,145.32,145.27,21.25647524]
[1746635122815,21.25647524,145.32,145.27,28.14012844]
[1746635123128,21.25647524,145.32,145.27,21.25647524]
[1746635123323,28.13831406,145.31,145.26,76.0]
[1746635123632,21.25647524,145.3,145.26,97.25647524]
[1746635124036,21.25647524,145.29,145.26,76.0]
[1746635124719,21.25647524,145.3,145.26,97.25647524]
[1746635124929,6.88183882,145.31,145.27,21.25647524]
[1746635125126,28.13831406,145.31,145.27,21.25647524]
[1746635125529,28.13831406,145.31,145.27,28.14020298]
[1746635125716,28.13831406,145.31,145.27,21.25647524]
[1746635126322,21.25647524,145.32,145.28,21.25647524]
[1746635127415,21.25647524,145.31,145.27,28.14013881]
[1746635128327,8.016,145.35,145.3,26.0]
[1746635128532,29.27247524,145.35,145.3,47.25647524]
[1746635129327,24.93299431,145.39,145.32,71.25647524]
[1746635129612,21.25647524,145.37,145.32,71.25647524]
[1746635129826,21.25647524,145.37,145.33,21.25647524]
[1746635130038,24.93299431,145.39,145.33,21.25647524]
[1746635130227,21.25647524,145.37,145.33,21.25647524]
[1746635130531,17.19292834,145.41,145.36,26.0]
[1746635130722,21.25647524,145.4,145.36,26.0]
[1746635131317,6.87757909,145.4,145.36,47.25647524]
[1746635132037,6.87722396,145.41,145.38,21.25647524]
[1746635132278,28.1336992,145.41,145.36,97.25647524]
[1746635132545,21.25647524,145.41,145.36,97.25647524]
[1746635133045,21.25647524,145.39,145.36,76.0]
[1746635133339,21.25647524,145.4,145.36,97.25647524]
[1746635133841,21.25647524,145.4,145.36,76.0]
[1746635134016,21.25647524,145.39,145.36,26.0]
[1746635134517,28.13480638,145.39,145.36,26.0]
[1746635135546,21.25647524,145.38,145.35,16.66]
[1746635136336,28.13541149,145.38,145.35,16.66]
[1746635137126,6.87757909,145.4,145.35,37.91647524]
[1746635137321,28.13405433,145.4,145.36,21.25647524]
[1746635141054,21.25647524,145.39,145.35,37.91647524]
[1746635141861,21.25647524,145.39,145.35,44.79636877]
[1746635142029,28.13405433,145.4,145.35,44.79636877]
[1746635142425,28.13405433,145.4,145.35,23.53989353]
[1746635142626,28.13405433,145.4,145.35,44.79636877]
[1746635142929,28.13460581,145.39,145.35,37.91647524]
[1746635143329,21.25647524,145.38,145.35,16.66]
[1746635144160,6.87813057,145.39,145.35,16.66]
[1746635144456,21.25647524,145.38,145.35,16.66]
[1746635144645,6.87813057,145.39,145.35,16.66]
[1746635144838,28.13460581,145.39,145.35,37.91647524]
[1746635146240,28.13460581,145.39,145.35,16.66]
[1746635146241,21.25647524,145.37,145.35,16.66]
[1746635146425,21.25647524,145.36,145.35,16.66]
[1746635146633,21.25647524,145.37,145.35,16.66]
[1746635147343,21.25647524,145.37,145.32,82.88104327]
[1746635147344,28.13594689,145.36,145.32,26.0]
[1746635147530,6.87947165,145.36,145.32,26.0]
[1746635147726,6.87852524,145.38,145.33,21.25647524]
[1746635147925,21.25647524,145.37,145.33,21.25647524]
[1746635148149,21.25647524,145.36,145.32,97.25647524]
[1746635148352,21.25647524,145.35,145.31,16.66]
[1746635148553,24.07483835,145.38,145.31,70.79820901]
[1746635148736,21.25647524,145.36,145.31,63.91647524]
[1746635148936,21.25647524,145.35,145.31,63.91647524]
[1746635149354,28.13643373,145.35,145.31,63.91647524]
[1746635149776,21.25647524,145.34,145.31,42.66]
[1746635150057,21.25647524,145.33,145.31,16.66]
[1746635150736,21.25647524,145.34,145.31,16.66]
[1746635151450,28.13735045,145.34,145.31,16.66]
[1746635151641,6.88087521,145.34,145.31,37.91647524]
[1746635151965,21.25647524,145.35,145.31,44.7982485]
[1746635152154,6.87964576,145.36,145.31,44.7982485]
[1746635152155,28.136121,145.36,145.32,21.25647524]
[1746635152658,6.87919352,145.37,145.33,21.25647524]
[1746635152857,28.13566876,145.37,145.33,21.25647524]
[1746635153233,6.87919352,145.37,145.32,71.25647524]
[1746635153436,28.13566876,145.37,145.32,71.25647524]
[1746635153658,21.25647524,145.36,145.32,71.25647524]
[1746635154463,21.25647524,145.35,145.32,50.0]
[1746635155863,6.88041832,145.34,145.32,50.0]
[1746635156357,6.88041832,145.34,145.31,37.91647524]
[1746635158258,28.13689356,145.34,145.31,16.66]
[1746635158751,45.33793938,145.34,145.31,16.66]
[1746635159862,6.88041832,145.34,145.31,16.66]
[1746635160064,6.88017895,145.35,145.32,21.25647524]
[1746635160961,28.13665419,145.35,145.31,37.91647524]
[1746635161160,28.13665419,145.35,145.31,16.66]
[1746635161161,21.25647524,145.34,145.31,16.66]
[1746635161461,6.88089176,145.33,145.31,16.66]
[1746635161760,28.137367,145.33,145.31,16.66]
[1746635162339,21.25647524,145.32,145.31,16.66]
[1746635162739,28.137367,145.33,145.31,16.66]
[1746635162960,6.88049361,145.34,145.31,37.91647524]
[1746635163262,21.25647524,145.37,145.32,21.25647524]
[1746635163647,21.25647524,145.36,145.32,21.25647524]
[1746635164663,21.25647524,145.35,145.31,37.91647524]
[1746635165263,21.25647524,145.35,145.31,16.66]
[1746635165459,21.25647524,145.33,145.31,16.66]
[1746635165763,28.13769386,145.33,145.31,16.66]
[1746635165959,6.88121862,145.33,145.31,16.66]
[1746635166748,6.87899841,145.37,145.32,21.25647524]
[1746635166945,21.25647524,145.36,145.32,21.25647524]
[1746635168173,28.13603472,145.36,145.32,21.25647524]
[1746635168471,21.25647524,145.34,145.31,16.66]
[1746635169853,28.13603472,145.36,145.32,21.25647524]
[1746635170352,6.87923472,145.37,145.33,21.25647524]
[1746635170557,28.13501209,145.38,145.34,21.25647524]
[1746635170963,28.13501209,145.38,145.33,21.25647524]
[1746635172175,28.13501209,145.38,145.34,21.25647524]
[1746635172383,28.13501209,145.38,145.35,21.25647524]
[1746635172384,6.87853685,145.38,145.35,21.25647524]
[1746635172767,6.87853685,145.38,145.36,21.25647524]
[1746635173157,6.87853685,145.38,145.35,21.25647524]
[1746635175287,6.87853685,145.38,145.34,71.25647524]
[1746635176375,6.87853685,145.38,145.35,21.25647524]
[1746635176984,6.87853685,145.38,145.34,71.25647524]
[1746635177191,51.25318714,145.43,145.35,21.25647524]
[1746635177375,51.25318714,145.43,145.37,21.25647524]
[1746635177690,21.25647524,145.41,145.37,21.25647524]
[1746635178686,51.25318714,145.43,145.38,21.25647524]
[1746635178687,6.87675429,145.42,145.38,21.25647524]
[1746635178898,28.13322953,145.42,145.38,21.25647524]
[1746635179781,34.62928914,145.43,145.38,21.25647524]
[1746635180085,6.8763139,145.43,145.4,21.25647524]
[1746635180473,6.87521485,145.45,145.4,21.25647524]
[1746635180882,6.87521485,145.45,145.4,71.25647524]
[1746635181068,28.13169009,145.45,145.4,71.25647524]
[1746635181569,21.25647524,145.44,145.4,71.25647524]
[1746635182269,28.13240903,145.44,145.4,71.25647524]
[1746635182471,6.87533567,145.45,145.41,21.25647524]
[1746635182692,6.87533567,145.45,145.42,21.25647524]
[1746635182999,6.87533567,145.45,145.41,37.91647524]
[1746635183175,28.13181091,145.45,145.41,37.91647524]
[1746635183695,28.13181091,145.45,145.41,16.66]
[1746635183696,21.25647524,145.44,145.41,16.66]
[1746635184006,21.25647524,145.42,145.41,16.66]
[1746635184496,6.8766332,145.42,145.41,16.66]
[1746635185203,28.13310844,145.42,145.38,26.0]
[1746635185371,21.25647524,145.4,145.38,26.0]
[1746635186297,21.25647524,145.4,145.37,16.66]
[1746635186467,28.13427648,145.4,145.37,16.66]
[1746635187085,21.25647524,145.39,145.37,16.66]
[1746635187294,21.25647524,145.38,145.37,16.66]
[1746635187587,21.25647524,145.38,145.35,26.0]
[1746635188168,21.25647524,145.38,145.34,50.0]
[1746635188389,24.07174897,145.4,145.34,50.0]
[1746635188390,28.1358568,145.37,145.34,50.0]
[1746635188880,6.87938156,145.37,145.34,50.0]
[1746635189485,28.1358568,145.37,145.34,50.0]
[1746635189796,17.19394773,145.4,145.34,71.25647524]
[1746635189797,28.13518887,145.38,145.34,71.25647524]
[1746635190496,21.25647524,145.37,145.34,50.0]
[1746635191004,28.13518887,145.38,145.34,50.0]
[1746635192884,28.13518887,145.38,145.34,71.25647524]
[1746635193400,6.87871363,145.38,145.35,21.25647524]
[1746635193789,28.13462183,145.39,145.35,21.25647524]
[1746635193996,28.13460013,145.39,145.35,21.25647524]
[1746635194587,28.13460013,145.39,145.34,71.25647524]
[1746635194887,21.25647524,145.38,145.34,50.0]
[1746635195801,28.13544374,145.38,145.34,50.0]
[1746635196002,28.13544374,145.38,145.34,71.25647524]
[1746635197204,6.87710611,145.41,145.36,21.25647524]
[1746635197411,6.87710611,145.41,145.37,21.25647524]
[1746635200708,28.13358135,145.41,145.37,21.25647524]
[1746635201013,21.25647524,145.39,145.35,21.25647524]
[1746635201710,21.25647524,145.4,145.35,21.25647524]
[1746635202397,6.87805213,145.39,145.35,21.25647524]
[1746635203880,28.13452737,145.39,145.35,21.25647524]
[1746635206213,17.19276528,145.41,145.38,26.0]
[1746635206214,21.25647524,145.41,145.38,26.0]
[1746635206891,6.87757909,145.4,145.38,26.0]
[1746635207088,6.8766332,145.42,145.38,26.0]
[1746635207313,6.8766332,145.42,145.38,47.25647524]
[1746635207495,28.13310844,145.42,145.38,26.0]
[1746635207721,21.25647524,145.41,145.38,26.0]
[1746635208206,21.25647524,145.39,145.35,50.0]
[1746635208419,21.25647524,145.37,145.33,66.66]
[1746635208583,21.25647524,145.37,145.33,92.66]
[1746635208788,28.1357172,145.37,145.33,92.66]
[1746635209391,21.25647524,145.36,145.33,16.66]
[1746635209991,6.87924196,145.37,145.33,16.66]
[1746635210192,28.1357172,145.37,145.33,16.66]
[1746635210723,28.1357172,145.37,145.33,37.91647524]
[1746635211098,6.87852524,145.38,145.33,37.91647524]
[1746635211300,21.25647524,145.37,145.33,37.91647524]
[1746635211808,6.87852524,145.38,145.33,37.91647524]
[1746635212019,28.13500048,145.38,145.33,37.91647524]
[1746635212333,28.13472476,145.39,145.35,21.25647524]
[1746635212918,28.13472476,145.39,145.34,21.25647524]
[1746635214108,21.25647524,145.38,145.34,21.25647524]
[1746635214509,28.13545486,145.38,145.33,87.91647524]
[1746635214708,21.25647524,145.37,145.33,87.91647524]
[1746635215225,21.25647524,145.36,145.33,16.66]
[1746635216911,6.87994496,145.35,145.33,16.66]
[1746635218930,17.19631311,145.38,145.33,16.66]
[1746635219125,21.25647524,145.36,145.33,16.66]
[1746635221025,28.13620008,145.36,145.33,16.66]
[1746635221209,6.87972484,145.36,145.33,16.66]
[1746635221835,6.87920279,145.37,145.33,37.91647524]
[1746635222128,6.87805213,145.39,145.34,21.25647524]
[1746635222313,6.87805213,145.39,145.33,16.66]
[1746635222314,21.25647524,145.36,145.33,16.66]
[1746635222514,21.25647524,145.35,145.33,16.66]
[1746635222719,21.25647524,145.34,145.33,16.66]
[1746635223238,28.13689356,145.34,145.33,16.66]
[1746635223639,6.88041832,145.34,145.33,16.66]
[1746635225543,28.13689356,145.34,145.3,26.0]
[1746635225755,21.25647524,145.33,145.3,26.0]
[1746635226235,45.33793938,145.34,145.3,26.0]
[1746635226552,21.25647524,145.32,145.29,16.66]
[1746635227147,6.88183882,145.31,145.29,16.66]
[1746635227450,28.13806605,145.32,145.29,16.66]
[1746635228658,6.2541,145.35,145.3,21.25647524]
[1746635228948,28.13547365,145.37,145.33,21.25647524]
[1746635229152,6.87899841,145.37,145.34,21.25647524]
[1746635229652,6.87899841,145.37,145.33,21.25647524]
[1746635229653,28.13547365,145.37,145.33,21.25647524]
[1746635230022,21.25647524,145.37,145.33,21.25647524]
[1746635230221,6.87866414,145.38,145.33,21.25647524]
[1746635230435,21.25647524,145.37,145.33,21.25647524]
[1746635230644,6.87866414,145.38,145.33,21.25647524]
[1746635230820,21.25647524,145.37,145.33,21.25647524]
[1746635231023,28.13557122,145.37,145.33,21.25647524]